bitfinex-derivatives/quotes_ETHF0:USTF0_20260128
["timestamp","ask_amount","ask_price","bid_price","bid_amount"]
[1769634444225,0.6014454,3012.2,3010.3,0.16633]
[1769634444420,0.6014454,3012.1,3010.1,0.46403548]
[1769634444614,0.6014454,3011.9,3009.7,0.62981877]
[1769634445021,0.51610833,3011.7,3009.7,0.62981877]
[1769634446524,0.51610833,3011.6,3009.7,0.46345877]
[1769634446718,0.51610833,3011.3,3009.6,0.00351551]
[1769634447323,0.1663,3011.0,3009.6,0.00351551]
[1769634447524,0.51610833,3010.9,3009.6,0.00351551]
[1769634447724,0.49210776,3010.7,3008.6,0.43651371]
[1769634447925,0.49210776,3010.5,3008.3,7.30174972]
[1769634448126,0.49210776,3010.5,3008.3,0.44002922]
[1769634448521,0.49210776,3010.3,3008.3,0.44002922]
[1769634448724,0.49210776,3010.3,3008.2,6.1149659]
[1769634450931,0.00423102,3010.3,3009.0,0.43543787]
[1769634452122,0.49633878,3010.3,3009.0,0.43543787]
[1769634452524,0.49210776,3010.8,3009.5,0.43199554]
[1769634452724,0.49210776,3011.7,3009.5,0.43199554]
[1769634452922,0.49210776,3011.7,3009.6,0.43199554]
[1769634453522,0.49558745,3011.7,3009.6,0.43199554]
[1769634454428,0.49558745,3011.7,3009.5,0.16637]
[1769634454429,0.49558745,3011.7,3009.7,0.42661898]
[1769634454623,0.49558745,3011.7,3010.0,0.42661898]
[1769634455133,0.49558745,3011.7,3010.2,0.42661898]
[1769634455337,0.00347969,3011.7,3010.5,0.42661898]
[1769634455524,0.49210776,3012.1,3010.6,0.42152549]
[1769634456527,0.00410039,3012.1,3010.7,0.41578396]
[1769634456935,0.49620815,3012.1,3010.7,0.58209396]
[1769634457136,0.49620815,3012.1,3010.8,0.41578396]
[1769634458037,0.49620815,3012.1,3010.7,0.16631]
[1769634458236,0.49620815,3012.1,3010.5,0.00378935]
[1769634459635,0.49620815,3012.1,3010.5,0.40359853]
[1769634460137,0.49620815,3012.1,3010.6,0.39980918]
[1769634460835,0.49620815,3012.1,3010.7,0.39078518]
[1769634461631,0.00410039,3012.1,3010.7,0.39078518]
[1769634461836,0.49620815,3012.1,3010.7,0.39078518]
[1769634462440,0.49620815,3012.1,3010.5,5.95231525]
[1769634462648,0.49620815,3012.1,3010.5,0.00378935]
[1769634462940,0.49210776,3011.9,3010.5,0.00378935]
[1769634463140,0.49210776,3011.7,3009.7,0.38145672]
[1769634463640,0.49210776,3011.7,3009.6,5.9485259]
[1769634463641,0.49210776,3011.6,3009.6,5.9485259]
[1769634463835,0.49210776,3011.3,3009.4,5.9485259]
[1769634464036,0.49210776,3011.3,3009.3,0.37666867]
[1769634464235,0.49210776,3011.3,3009.3,0.38095729]
[1769634464944,0.49210776,3011.3,3009.5,0.37633311]
[1769634465241,0.49210776,3011.3,3009.7,0.37633311]
[1769634465742,0.49210776,3011.3,3009.6,0.16637]
[1769634465743,0.49210776,3011.3,3009.6,0.53795999]
[1769634466636,0.49210776,3011.3,3009.7,0.36370273]
[1769634469245,0.49210776,3011.3,3009.8,0.36376558]
[1769634469940,0.00410039,3012.1,3009.4,1.59261349]
[1769634469941,0.49210776,3012.0,3010.1,0.35912198]
[1769634470143,0.49210776,3012.0,3009.9,5.9485259]
[1769634470443,0.49210776,3011.7,3009.5,5.9485259]
[1769634470647,0.49210776,3011.5,3009.4,6.46917572]
[1769634471041,0.49210776,3011.5,3009.5,0.35426982]
[1769634473043,0.49210776,3011.5,3009.6,0.51162169]
[1769634473340,0.49210776,3011.5,3009.8,0.34525169]
[1769634473538,0.49210776,3011.5,3010.1,0.3407341]
[1769634475646,0.49210776,3011.5,3009.9,5.9485259]
[1769634475850,0.49210776,3011.5,3009.7,7.63225304]
[1769634476043,0.49210776,3011.5,3009.7,0.33050332]
[1769634478746,0.47088238,3011.4,3009.5,0.31658382]
[1769634479150,0.47088238,3011.4,3009.6,0.31658382]
[1769634479351,0.47088238,3011.4,3009.6,6.26510972]
[1769634479747,0.47088238,3011.4,3009.7,0.31211276]
[1769634480354,0.47088238,3011.4,3010.0,0.31211276]
[1769634480554,0.47088238,3011.4,3010.1,0.30782582]
[1769634481753,0.47088238,3011.4,3010.1,6.25635172]
[1769634482346,0.47088238,3011.4,3010.1,5.9485259]
[1769634482857,0.47088238,3011.4,3009.8,5.9485259]
[1769634483453,0.47088238,3011.4,3009.7,5.9485259]
[1769634483454,0.16628,3011.3,3009.7,5.9485259]
[1769634483652,0.47088238,3011.2,3009.6,5.9485259]
[1769634484649,0.00410039,3012.1,3009.3,7.30603834]
[1769634484650,0.47088238,3011.0,3009.5,5.9485259]
[1769634484855,0.47088238,3011.0,3009.3,5.95281452]
[1769634485058,0.47088238,3011.0,3009.3,0.00428862]
[1769634486560,0.47088238,3011.0,3009.3,5.95281452]
[1769634486762,0.47088238,3011.0,3009.3,0.00428862]
[1769634487751,0.47088238,3010.7,3009.3,0.00428862]
[1769634488352,0.47088238,3010.4,3008.7,5.9485259]
[1769634488553,0.47088238,3010.4,3008.6,5.9485259]
[1769634488949,0.47088238,3010.3,3008.6,5.9485259]
[1769634489155,0.47088238,3010.3,3008.3,13.25027562]
[1769634489353,0.47088238,3010.3,3008.3,5.95166827]
[1769634489553,0.47088238,3010.3,3008.4,0.28344019]
[1769634489758,0.47088238,3010.3,3008.3,6.11810827]
[1769634490257,0.47088238,3010.3,3008.3,0.16958237]
[1769634490458,0.47088238,3010.3,3008.3,6.11810827]
[1769634490655,4.93061349,3010.9,3008.3,6.11810827]
[1769634490656,0.47088238,3010.1,3008.5,0.27938714]
[1769634490957,0.47088238,3010.1,3008.7,0.27938714]
[1769634491858,0.47088238,3010.1,3008.6,6.1149559]
[1769634492059,0.47088238,3010.1,3008.5,5.9485259]
[1769634493460,0.47088238,3010.1,3008.4,1.59261349]
[1769634493461,0.47088238,3010.1,3008.4,7.54113939]
[1769634493657,0.47088238,3010.1,3008.4,1.59261349]
[1769634493853,0.47088238,3010.1,3008.4,1.85983786]
[1769634494059,0.47088238,3010.1,3008.9,1.59261349]
[1769634494265,0.47088238,3010.4,3009.0,0.26722437]
[1769634494958,6.332,3011.8,3009.5,0.45049134]
[1769634495155,0.16626,3011.6,3009.5,0.45049134]
[1769634495358,0.16628,3011.3,3009.5,0.45049134]
[1769634497059,0.47088238,3011.2,3009.5,0.45049134]
[1769634498062,0.47088238,3011.2,3009.2,0.16639]
[1769634498264,0.47088238,3011.2,3009.2,0.61688134]
[1769634498963,0.47088238,3010.8,3009.0,5.9485259]
[1769634499167,0.47088238,3010.8,3009.0,0.45049134]
[1769634499762,0.47088238,3010.8,3009.1,0.45049134]
[1769634500067,0.47088238,3010.8,3009.5,0.45049134]
[1769634500268,0.47088238,3011.4,3009.5,0.45049134]
[1769634500968,0.47088238,3011.4,3009.6,0.45049134]
[1769634504464,0.47088238,3011.4,3009.6,0.61686134]
[1769634504665,0.47088238,3011.8,3010.5,0.45049134]
[1769634504861,0.47088238,3011.8,3010.5,0.45421875]
[1769634506671,0.47088238,3011.8,3010.5,0.00372741]
[1769634507172,0.3964741,3011.5,3010.5,0.00372741]
[1769634510565,40.97033039,3012.1,3010.5,0.38723246]
[1769634510566,0.38453147,3012.0,3010.5,0.38723246]
[1769634511080,0.00410039,3012.1,3010.7,0.38350505]
[1769634512776,0.38863186,3012.1,3010.7,0.38350505]
[1769634513779,0.38863186,3012.1,3010.5,0.00372741]
[1769634514466,0.55486186,3012.1,3010.5,0.00372741]
[1769634514668,0.38453147,3012.0,3010.5,0.00372741]
[1769634514866,0.38453147,3011.8,3010.5,0.00372741]
[1769634515280,0.38453147,3011.7,3010.5,0.00372741]
[1769634516681,3.69325,3011.8,3010.5,0.00372741]
[1769634516682,0.38453147,3011.5,3010.5,0.00372741]
[1769634518880,0.38453147,3012.0,3010.5,0.38723246]
[1769634520382,0.00410039,3012.1,3010.7,0.38350505]
[1769634522483,0.00410039,3012.1,3010.8,0.38350505]
[1769634522684,0.38863186,3012.1,3010.8,0.38350505]
[1769634523289,0.16625,3011.8,3010.5,0.00372741]
[1769634523488,0.38453147,3011.3,3009.9,7.30174972]
[1769634523686,0.38453147,3010.8,3009.4,3.326]
[1769634524690,0.38453147,3010.8,3009.4,3.33014817]
[1769634524992,0.38453147,3010.8,3009.5,0.38350505]
[1769634526791,0.38453147,3010.8,3009.4,3.33014817]
[1769634528701,0.38453147,3010.8,3009.4,3.71365322]
[1769634529695,0.38453147,3010.8,3009.5,0.38350505]
[1769634532896,0.38453147,3010.8,3009.4,3.33014817]
[1769634533697,0.38453147,3010.7,3009.4,3.33014817]
[1769634534697,0.38453147,3010.7,3009.4,0.00414817]
[1769634535296,3.89053147,3010.7,3009.4,0.00414817]
[1769634535597,0.33918138,3010.6,3009.4,0.00414817]
[1769634537391,0.33918138,3010.6,3009.4,0.36099134]
[1769634540109,0.33918138,3011.0,3009.4,0.36099134]
[1769634541399,0.33918138,3010.9,3009.4,0.36099134]
[1769634542103,0.33918138,3010.8,3009.4,0.36099134]
[1769634542797,0.33918138,3011.9,3010.0,0.35684317]
[1769634542998,0.33918138,3011.9,3010.3,0.35684317]
[1769634543197,0.00410039,3012.1,3010.6,0.16631]
[1769634543401,0.00410039,3012.1,3010.7,0.35684317]
[1769634543600,0.34328177,3012.1,3010.7,0.35684317]
[1769634544198,0.33918138,3012.7,3010.9,0.52314317]
[1769634544399,0.33918138,3012.7,3011.0,0.35684317]
[1769634544897,0.33918138,3013.2,3011.2,0.35684317]
[1769634545091,0.34297202,3013.2,3011.2,0.35684317]
[1769634545302,0.34297202,3013.2,3011.3,0.35684317]
[1769634546198,0.34297202,3013.2,3011.5,0.35684317]
[1769634546397,0.34297202,3013.2,3011.6,0.35684317]
[1769634546701,0.34297202,3013.2,3011.8,0.35684317]
[1769634547497,0.26709676,3014.1,3011.8,0.35684317]
[1769634547498,0.33918138,3013.8,3012.2,0.35684317]
[1769634548205,0.33918138,3014.2,3012.4,0.35684317]
[1769634548401,0.34244015,3014.2,3012.6,0.35684317]
[1769634549807,0.34244015,3014.2,3012.5,1.95]
[1769634550306,0.34244015,3014.2,3012.6,0.35684317]
[1769634550506,0.00325877,3014.2,3012.6,0.35684317]
[1769634550699,0.33918138,3014.6,3012.9,0.35684317]
[1769634551098,0.16604,3015.6,3013.5,0.35684317]
[1769634551294,0.33918138,3015.5,3013.6,0.35684317]
[1769634551605,0.33918138,3015.4,3013.6,0.35684317]
[1769634551806,0.33918138,3015.4,3013.3,1.95]
[1769634551807,0.50896644,3015.4,3013.3,1.95]
[1769634551997,0.33918138,3015.2,3013.3,1.95]
[1769634552194,0.33918138,3014.6,3012.1,0.35684317]
[1769634552400,0.33918138,3014.2,3012.1,0.35684317]
[1769634552599,0.33918138,3014.0,3012.1,0.35684317]
[1769634553000,0.33918138,3013.9,3012.1,0.35684317]
[1769634553198,0.33918138,3013.6,3011.8,5.275]
[1769634553806,0.33918138,3013.6,3011.9,0.35684317]
[1769634555500,0.33918138,3014.2,3012.0,0.35684317]
[1769634555897,0.33918138,3014.2,3012.1,0.35684317]
[1769634556404,0.33918138,3014.2,3012.5,0.35684317]
[1769634556599,0.33918138,3014.2,3012.6,0.35684317]
[1769634557701,0.33918138,3014.1,3012.0,0.35684317]
[1769634558797,0.33918138,3014.1,3012.2,0.52307317]
[1769634558998,0.33918138,3014.1,3012.3,0.35684317]
[1769634559207,0.33918138,3014.5,3012.4,0.35684317]
[1769634559404,0.33918138,3014.5,3012.6,0.35684317]
[1769634560314,0.33918138,3014.5,3012.7,0.35684317]
[1769634561311,0.33918138,3015.3,3012.8,0.35684317]
[1769634561501,0.33918138,3015.3,3013.1,0.35684317]
[1769634561909,0.33918138,3015.3,3013.2,0.35684317]
[1769634563115,0.33918138,3015.3,3013.3,0.35684317]
[1769634563314,0.33918138,3015.0,3013.3,0.35684317]
[1769634563509,0.33918138,3014.7,3013.0,1.949]
[1769634563708,0.33918138,3014.7,3013.1,0.35684317]
[1769634564419,0.33918138,3015.3,3013.4,0.35684317]
[1769634565116,0.33918138,3015.3,3013.5,0.30873719]
[1769634565416,0.29422729,3015.0,3013.1,0.30873719]
[1769634565819,0.29422729,3014.7,3013.1,0.30873719]
[1769634567017,0.29422729,3015.2,3013.2,0.30873719]
[1769634567311,0.29422729,3015.2,3013.3,0.30873719]
[1769634567516,0.29422729,3015.2,3013.5,0.30873719]
[1769634568018,0.29710781,3015.1,3013.1,0.30618582]
[1769634568212,0.29710781,3015.0,3013.1,0.30618582]
[1769634568514,0.29710781,3015.0,3013.3,0.30618582]
[1769634569219,0.29710781,3014.8,3013.0,1.949]
[1769634569408,44.138,3015.3,3013.0,1.949]
[1769634569612,0.29710781,3014.6,3012.9,3.62918582]
[1769634570610,0.29710781,3014.6,3013.0,0.30618582]
[1769634571119,0.29710781,3014.6,3013.1,0.30618582]
[1769634573213,0.29710781,3014.6,3013.2,0.30618582]
[1769634573414,0.29710781,3014.6,3013.4,0.30618582]
[1769634573608,44.28806,3015.3,3012.9,3.323]
[1769634573609,0.29710781,3015.0,3013.5,1.5882696]
[1769634573814,0.30084287,3015.4,3013.6,0.30618582]
[1769634574412,0.30084287,3015.4,3013.8,0.30618582]
[1769634574612,0.30084287,3015.4,3013.8,0.3095113]
[1769634575418,0.30084287,3015.4,3013.8,0.00332548]
[1769634575728,0.29710781,3015.3,3013.8,0.00332548]
[1769634576021,0.29710781,3015.2,3013.8,0.00332548]
[1769634576214,0.30084287,3015.4,3013.9,0.30618582]
[1769634577713,0.00373506,3015.4,3014.0,1.5882696]
[1769634578020,0.00373506,3015.4,3014.1,0.30618582]
[1769634578611,0.30084287,3015.4,3014.1,0.30618582]
[1769634579330,0.30084287,3015.4,3013.8,0.00332548]
[1769634579530,0.30084287,3015.4,3013.8,0.3095113]
[1769634579841,0.30084287,3015.4,3013.8,0.00332548]
[1769634580125,0.29710781,3015.3,3013.8,0.00332548]
[1769634580820,0.46316781,3015.3,3013.8,0.00332548]
[1769634581038,0.29710781,3015.2,3013.8,0.00332548]
[1769634581229,0.29710781,3015.0,3013.8,0.00332548]
[1769634584929,0.29710781,3014.9,3012.9,0.30618582]
[1769634585831,0.29710781,3014.9,3013.0,0.30618582]
[1769634586034,0.29710781,3014.9,3013.2,0.30618582]
[1769634586331,0.29710781,3014.9,3013.2,6.25471172]
[1769634586522,0.29710781,3014.9,3013.3,0.30618582]
[1769634586722,0.29710781,3014.9,3013.4,0.30618582]
[1769634587524,0.29710781,3014.9,3013.0,6.25471172]
[1769634587728,0.29710781,3014.8,3013.1,0.30618582]
[1769634589535,0.29710781,3014.8,3013.4,0.30618582]
[1769634589737,0.29710781,3015.3,3013.6,0.30618582]
[1769634592441,0.29710781,3015.2,3013.4,5.9485259]
[1769634592738,0.29710781,3015.0,3013.3,0.30618582]
[1769634592930,0.29710781,3014.8,3013.3,0.30618582]
[1769634594334,0.29710781,3015.3,3013.4,0.30618582]
[1769634594538,0.29710781,3015.3,3013.6,0.30618582]
[1769634596446,0.29710781,3015.3,3013.7,0.26730718]
[1769634596742,0.29710781,3015.3,3013.8,2.21530718]
[1769634597244,0.29710781,3015.3,3013.9,0.26730718]
[1769634598239,0.00373506,3015.4,3013.9,0.26730718]
[1769634598636,0.27294513,3015.4,3013.9,0.26730718]
[1769634600346,0.27294513,3015.4,3014.1,0.26730718]
[1769634601454,0.27294513,3015.4,3013.8,8.16383308]
[1769634601647,0.26921007,3015.2,3013.8,8.16383308]
[1769634601850,0.26921007,3015.2,3013.8,2.21530718]
[1769634602453,0.26921007,3015.2,3013.8,8.16383308]
[1769634602960,0.26921007,3015.2,3013.8,2.21530718]
[1769634603158,0.26921007,3015.2,3013.8,1.948]
[1769634603362,0.26921007,3015.1,3013.8,1.948]
[1769634604557,0.26921007,3014.9,3013.5,5.9485259]
[1769634604755,0.26921007,3014.7,3013.4,1.948]
[1769634605463,0.26921007,3014.4,3013.1,5.9485259]
[1769634605670,0.26921007,3014.4,3012.9,0.00373842]
[1769634607159,0.26921007,3014.4,3013.0,0.26730718]
[1769634609273,0.26921007,3015.2,3013.1,0.26730718]
[1769634609568,0.26921007,3015.2,3013.3,0.26730718]
[1769634609769,0.26921007,3015.2,3013.5,0.26730718]
[1769634610166,0.00373506,3015.4,3013.4,7.8965259]
[1769634610167,0.00373506,3015.4,3014.4,0.26730718]
[1769634610366,0.00373506,3015.4,3014.5,1.948]
[1769634610572,0.00373506,3015.4,3014.5,2.21530718]
[1769634610774,4.07151429,3016.8,3014.6,0.26730718]
[1769634610968,3.64889567,3016.7,3014.6,0.26730718]
[1769634611174,3.38450624,3016.6,3014.6,0.26730718]
[1769634611374,44.18450624,3016.6,3014.6,0.26730718]
[1769634611571,3.55049624,3016.5,3014.6,0.26730718]
[1769634611774,0.16884367,3016.5,3014.6,0.26730718]
[1769634612771,0.26921007,3016.4,3014.6,0.26730718]
[1769634613574,0.26921007,3016.3,3014.6,0.26730718]
[1769634614271,0.26921007,3016.2,3014.6,0.26730718]
[1769634614471,0.26921007,3015.8,3014.2,0.26730718]
[1769634614677,0.26921007,3015.6,3013.9,0.26730718]
[1769634615379,0.26921007,3016.2,3014.1,0.26730718]
[1769634615572,0.26921007,3016.2,3014.3,0.26730718]
[1769634615771,0.26921007,3016.2,3014.5,0.26730718]
[1769634616279,3.471,3016.2,3014.5,0.26730718]
[1769634616467,0.26921007,3016.1,3014.5,0.26730718]
[1769634617974,0.26921007,3016.1,3014.6,0.26730718]
[1769634619675,0.26921007,3016.0,3014.4,1.948]
[1769634619986,0.26921007,3015.9,3014.4,1.948]
[1769634620382,0.26921007,3015.9,3014.5,0.26730718]
[1769634622689,0.26921007,3015.8,3014.5,0.26730718]
[1769634622890,0.26921007,3015.8,3014.2,0.26730718]
[1769634623586,0.26921007,3015.7,3014.2,0.26730718]
[1769634625795,0.24475104,3015.6,3014.2,0.26730718]
[1769634625989,0.24475104,3015.5,3014.0,1.948]
[1769634626404,0.24475104,3015.5,3014.0,2.18343793]
[1769634626587,0.24475104,3015.5,3014.1,0.23543793]
[1769634628093,0.24979383,3015.4,3014.1,0.23543793]
[1769634629988,0.24979383,3015.8,3014.1,0.23543793]
[1769634631191,0.24979383,3015.7,3014.1,0.23543793]
[1769634631393,0.41583383,3015.7,3014.1,0.23543793]
[1769634631595,0.24979383,3015.5,3014.1,0.23543793]
[1769634632190,0.24979383,3015.4,3014.1,0.23543793]
[1769634634798,0.16605,3015.5,3014.1,0.23543793]
[1769634636489,0.24979383,3015.4,3014.1,0.23543793]
[1769634637593,0.16606,3015.3,3013.9,0.23679206]
[1769634637796,0.24979383,3015.4,3013.9,0.23679206]
[1769634638207,3.338,3015.8,3013.6,0.23679206]
[1769634638208,0.24979383,3015.0,3013.6,0.23679206]
[1769634638388,0.24979383,3014.8,3013.6,0.23679206]
[1769634638594,0.24979383,3014.8,3013.5,0.23679206]
[1769634639412,40.8,3014.9,3013.5,0.23679206]
[1769634639600,0.24979383,3015.1,3013.5,0.23679206]
[1769634640218,0.24979383,3015.0,3013.5,0.23679206]
[1769634640422,0.24979383,3014.9,3013.5,0.23679206]
[1769634641297,0.16607,3015.0,3013.5,0.23679206]
[1769634641622,0.24979383,3015.2,3013.5,0.23679206]
[1769634645397,0.16607,3015.1,3013.5,0.23679206]
[1769634645601,40.8,3015.4,3013.5,0.23679206]
[1769634645602,0.24979383,3014.9,3013.5,0.23679206]
[1769634648400,3.77979383,3014.9,3013.5,0.23679206]
[1769634648602,0.24979383,3014.8,3013.5,0.23679206]
[1769634649109,0.16608,3015.0,3013.5,0.23679206]
[1769634649298,3.78079383,3015.1,3013.5,0.23679206]
[1769634649498,0.24979383,3015.1,3013.5,0.23679206]
[1769634651997,3.80479383,3015.1,3013.7,0.23679206]
[1769634652708,0.24979383,3015.0,3013.7,0.23679206]
[1769634653505,0.24979383,3015.6,3013.8,0.16614]
[1769634653711,0.24979383,3015.6,3013.9,0.23679206]
[1769634657618,0.24979383,3015.6,3014.0,0.21121938]
[1769634659506,0.24979383,3015.6,3014.2,0.21121938]
[1769634664011,0.24979383,3015.6,3014.3,0.16611]
[1769634664214,0.22939873,3015.9,3014.4,0.21121938]
[1769634664615,0.22939873,3015.8,3014.4,0.21121938]
[1769634665218,0.22939873,3015.7,3014.4,0.21121938]
[1769634665521,0.39543873,3015.7,3014.1,2.15921938]
[1769634665817,0.22939873,3015.6,3014.1,2.15921938]
[1769634666016,0.22939873,3015.5,3014.1,0.21121938]
[1769634666217,0.22939873,3015.4,3014.1,0.21121938]
[1769634666408,0.22939873,3015.2,3013.8,0.21121938]
[1769634666607,0.22939873,3015.1,3013.8,0.21121938]
[1769634667511,0.22939873,3015.4,3013.8,0.21121938]
[1769634667821,0.22939873,3015.4,3013.9,0.21121938]
[1769634670611,0.22939873,3015.2,3013.9,0.21121938]
[1769634671812,0.39544873,3015.5,3013.9,0.21121938]
[1769634672012,0.22939873,3015.4,3013.9,0.21121938]
[1769634673619,3.573,3015.5,3013.9,0.21121938]
[1769634673620,0.22939873,3015.2,3013.9,0.21121938]
[1769634674012,0.22939873,3015.1,3013.9,0.21121938]
[1769634674222,3.573,3015.5,3013.5,9.2705259]
[1769634674223,0.22939873,3014.8,3013.5,3.322]
[1769634674522,0.22939873,3014.8,3013.3,0.21121938]
[1769634674523,0.22939873,3014.6,3013.3,0.21121938]
[1769634677624,0.22939873,3014.9,3013.3,0.21121938]
[1769634678521,0.22939873,3014.9,3013.4,0.21121938]
[1769634681126,0.16607,3015.1,3013.4,0.21121938]
[1769634681521,0.39546873,3015.1,3013.4,0.21121938]
[1769634681824,6.56139873,3015.4,3013.7,0.21121938]
[1769634682028,6.56139873,3015.4,3013.9,0.21121938]
[1769634682232,0.22939873,3015.3,3013.9,0.21121938]
[1769634682623,0.22939873,3015.9,3014.1,0.21121938]
[1769634682821,0.22939873,3015.9,3014.2,0.21121938]
[1769634683026,0.22939873,3015.9,3014.4,0.21121938]
[1769634683537,0.39539873,3016.3,3014.4,0.21121938]
[1769634683731,0.2322524,3016.5,3014.7,0.21121938]
[1769634683929,0.2322524,3016.5,3014.9,0.21121938]
[1769634684427,0.00285367,3016.5,3015.2,0.21121938]
[1769634684628,0.00285367,3016.5,3015.4,0.21121938]
[1769634685032,0.76425357,3016.9,3015.4,0.21121938]
[1769634685224,0.53485484,3016.9,3015.4,0.21121938]
[1769634685937,0.53800226,3016.9,3015.4,0.21121938]
[1769634687428,0.1988721,3016.8,3015.4,0.21121938]
[1769634688330,0.201487,3016.6,3015.4,0.21121938]
[1769634688636,0.367477,3016.6,3015.2,0.00250249]
[1769634688935,0.201487,3016.5,3015.2,0.00250249]
[1769634689729,0.201487,3016.4,3015.2,0.00250249]
[1769634690126,0.367487,3016.4,3015.2,0.00250249]
[1769634690325,0.201487,3016.2,3015.2,0.00250249]
[1769634690933,0.201487,3016.0,3015.2,0.00250249]
[1769634691736,0.201487,3016.0,3014.8,0.18658045]
[1769634692438,0.201487,3016.0,3014.5,0.18658045]
[1769634692837,0.201487,3016.0,3014.5,0.18933987]
[1769634694942,0.201487,3016.0,3014.5,0.00275942]
[1769634695143,0.201487,3015.5,3014.5,0.00275942]
[1769634697245,0.201487,3015.3,3014.5,0.00275942]
[1769634697551,0.201487,3015.3,3013.8,0.18658045]
[1769634698650,0.201487,3015.2,3013.8,0.18928463]
[1769634699537,0.201487,3015.1,3013.8,0.18928463]
[1769634710464,0.201487,3015.0,3013.8,0.18928463]
[1769634711557,0.201487,3014.9,3013.8,0.18928463]
[1769634711760,0.201487,3014.6,3013.8,0.00270418]
[1769634711960,0.37029617,3014.6,3013.8,0.00270418]
[1769634712161,0.201487,3014.5,3013.8,0.00270418]
[1769634712354,0.00270917,3014.6,3013.8,0.00270418]
[1769634712567,0.00270917,3014.6,3013.8,0.18928463]
[1769634720968,0.00270917,3014.6,3013.8,0.00270418]
[1769634720969,0.17799238,3014.6,3013.8,0.00270418]
[1769634721169,0.17528321,3014.3,3013.1,0.17252653]
[1769634721374,0.17528321,3014.0,3013.1,0.17252653]
[1769634721572,0.17528321,3014.0,3012.2,3.322]
[1769634721573,0.17528321,3013.7,3012.7,0.17252653]
[1769634721778,0.17528321,3014.1,3012.7,0.17252653]
[1769634722078,0.17528321,3014.1,3012.7,0.17567132]
[1769634722474,0.17528321,3013.9,3012.7,0.17567132]
[1769634729282,0.17528321,3013.8,3012.7,0.17567132]
[1769634729581,0.17528321,3013.7,3012.7,0.17567132]
[1769634730876,3.599,3013.7,3012.7,0.17567132]
[1769634731084,3.599,3013.8,3012.7,0.17567132]
[1769634731386,40.97528321,3014.3,3012.7,0.17567132]
[1769634731690,0.17799238,3014.6,3013.1,0.17252653]
[1769634731978,0.17528321,3014.5,3013.1,0.17252653]
[1769634734674,44.40670917,3014.6,3013.1,0.17252653]
[1769634734877,0.00270917,3014.6,3013.1,0.17252653]
[1769634738196,0.00270917,3014.6,3013.3,0.17252653]
[1769634738485,0.00270917,3014.6,3013.5,0.17252653]
[1769634741383,0.17528321,3014.5,3013.0,0.17252653]
[1769634741693,0.17528321,3014.3,3013.0,0.17252653]
[1769634742098,0.17799238,3014.6,3013.0,0.17252653]
[1769634742489,0.00270917,3014.6,3013.4,0.17252653]
[1769634742689,0.17799238,3014.6,3013.4,0.17252653]
[1769634743895,0.17528321,3014.2,3013.1,0.17252653]
[1769634744284,0.17799238,3014.6,3013.1,0.17252653]
[1769634744487,3.79199238,3014.6,3013.1,0.17252653]
[1769634744684,0.17528321,3014.5,3013.1,0.17252653]
[1769634746989,0.16880917,3014.6,3013.1,0.17252653]
[1769634747587,0.00270917,3014.6,3013.1,0.33870653]
[1769634747794,0.00270917,3014.6,3013.2,0.15849576]
[1769634748195,0.00270917,3014.6,3013.2,2.10649576]
[1769634748394,0.00270917,3014.6,3013.3,0.15849576]
[1769634750296,0.00270917,3014.6,3013.4,0.15849576]
[1769634750505,0.16607,3015.1,3013.4,0.15849576]
[1769634750696,0.16408662,3015.0,3013.4,0.15849576]
[1769634751002,0.16607,3015.1,3013.4,0.15849576]
[1769634751197,0.16607,3015.1,3013.5,0.15849576]
[1769634751400,0.16975943,3015.1,3013.5,0.15849576]
[1769634751898,0.00368943,3015.1,3013.7,0.15849576]
[1769634752198,0.16777605,3015.1,3013.7,0.15849576]
[1769634753997,0.33015662,3015.0,3013.7,0.15849576]
[1769634754197,0.16408662,3014.9,3013.7,0.15849576]
[1769634756894,0.16408662,3014.8,3013.7,0.15849576]
[1769634757106,0.16408662,3014.6,3013.4,0.15849576]
[1769634757508,3.77608662,3014.9,3013.4,0.15849576]
[1769634757899,0.16408662,3014.8,3013.4,0.15849576]
[1769634759906,0.16408662,3014.6,3013.4,0.15849576]
[1769634767407,0.16408662,3015.0,3013.4,0.15849576]
[1769634767614,0.16408662,3014.8,3013.4,0.15849576]
[1769634772415,0.32014813,3015.0,3013.4,0.15849576]
[1769634773015,0.15407813,3014.9,3013.4,0.15849576]
[1769634773312,0.00368943,3015.1,3013.5,0.32465576]
[1769634773515,0.00368943,3015.1,3013.6,0.15849576]
[1769634774405,0.00368943,3015.1,3013.6,0.32464576]
[1769634774609,0.00368943,3015.1,3013.7,0.32463576]
[1769634774804,0.00368943,3015.1,3013.8,0.15849576]
[1769634775213,0.00368943,3015.1,3013.9,0.30874372]
[1769634775418,0.14946304,3015.8,3014.0,0.14261372]
[1769634775610,3.40149211,3015.7,3014.0,0.14261372]
[1769634775812,3.40149211,3015.6,3014.2,0.14261372]
[1769634776006,40.94871063,3015.7,3014.2,0.14261372]
[1769634776517,40.95281843,3015.7,3014.2,0.14261372]
[1769634777114,0.15281843,3015.7,3014.2,0.14261372]
[1769634780820,0.14441468,3015.7,3014.3,0.14261372]
[1769634781013,0.14030688,3015.6,3014.3,0.14261372]
[1769634781319,0.14030688,3015.5,3014.3,0.14261372]
[1769634782114,0.13926176,3015.1,3013.9,0.14261372]
[1769634785123,0.13248035,3015.6,3014.0,0.14261372]
[1769634785425,0.0041078,3015.7,3014.2,0.30872372]
[1769634785623,0.0041078,3015.7,3014.3,0.14261372]
[1769634785812,0.0041078,3015.7,3014.4,0.30871372]
[1769634786016,0.0041078,3015.7,3014.5,0.14261372]
[1769634788519,0.13309443,3015.7,3014.2,0.14261372]
[1769634790920,40.8,3015.6,3014.2,0.14261372]
[1769634791522,0.0041078,3015.7,3014.2,0.14261372]
[1769634792619,0.0041078,3015.7,3014.3,0.30872372]
[1769634792926,0.0041078,3015.7,3014.5,0.14261372]
[1769634793221,0.166,3016.3,3014.6,0.14261372]
[1769634793528,40.966,3016.3,3014.6,0.14261372]
[1769634793819,40.966,3016.3,3014.7,0.14261372]
[1769634794125,0.12974394,3016.4,3014.7,0.14261372]
[1769634794326,0.13250606,3016.4,3014.7,0.14261372]
[1769634794521,0.13250606,3016.4,3014.8,0.14261372]
[1769634794723,0.00276212,3016.4,3014.9,0.14261372]
[1769634795026,0.00276212,3016.4,3014.9,0.14632015]
[1769634795923,0.00276212,3016.4,3015.1,0.14261372]
[1769634796227,0.00276212,3016.4,3015.2,0.14261372]
[1769634797429,0.53485484,3016.9,3015.3,0.14261372]
[1769634798426,0.53894208,3016.9,3015.3,0.14261372]
[1769634798824,0.53894208,3016.9,3015.5,0.14261372]
[1769634802425,0.53894208,3016.9,3015.6,0.14261372]
[1769634803028,0.53894208,3016.9,3015.8,0.14261372]
[1769634803230,0.53894208,3016.9,3015.9,0.14261372]
[1769634803727,0.5316423,3016.9,3015.9,0.14261372]
[1769634816736,0.5316423,3016.9,3016.0,0.13971907]
[1769634818241,0.26710487,3017.9,3015.8,1.947]
[1769634818242,0.10247969,3017.9,3016.3,0.13971907]